Cogmind - Beta 13 @@@ ROGUE MODE // 2024.04.23 @ 21:30:52 Player: graour Result: Destroyed by G-50 Soldier with Heavy Laser Performance ------------- Evolutions (5) 2500 Regions Visited (4) 800 Robots Destroyed (68) 340 Value Destroyed (2558) 2558 Prototype IDs (1) 20 Alien Tech Used (0) 0 Bonus (269) 269 TOTAL SCORE: 6487 Bonus ------- High Alert Combat Kills 195 Follower Combat Kills 74 Cogmind --------- Core Integrity 0/1000 Matter 299/300 Energy 359/385 System Corruption 6% Temperature Cool (42) Movement Walking (190) Ox1 Location -5/Factory Parts ------- > --- POWER (2) -------- Neutrino Core Light Antimatter Reactor > --- PROPULSION (4) --- Armored Leg Armored Leg Armored Leg Enhanced Flexi-carbon Leg > --- UTILITY (8) ------ Improved Heat Sink Improved Heat Sink Advanced Heat Sink Large Storage Unit Improved Signal Interpreter Terrain Scan Processor Improved Target Analyzer Advanced Shield Generator > --- WEAPON (3) ------- Wave Gun Heavy Plasma Cannon Mass Driver > --- INVENTORY (15) --- Micro Fission Core Carbon-fiber Leg Armored Leg Armored Leg Armored Leg Armored Leg Compact Wheel Improved Heat Sink Sensor Array Layered Heavy Armor Plating Authchip [Propulsion] Authchip [Device] Authchip [Weapon] Power Maul Peak State ------------ > --- POWER ------------ Neutrino Core Light Antimatter Reactor > --- PROPULSION ------- Armored Leg Armored Leg Armored Leg Enhanced Flexi-carbon Leg > --- UTILITY ---------- Improved Heat Sink Improved Heat Sink Advanced Heat Sink Large Storage Unit Improved Signal Interpreter Terrain Scan Processor Improved Target Analyzer Advanced Shield Generator > --- WEAPON ----------- Wave Gun Heavy Plasma Cannon Mass Driver > --- INVENTORY -------- Light Angular Momentum Engine Improved Treads Armored Leg Armored Leg Armored Leg Armored Leg Compact Wheel Improved Heat Sink Sensor Array Layered Heavy Armor Plating Authchip [Propulsion] Authchip [Device] Authchip [Weapon] Power Maul [Rating: 86] Favorites ----------- Power Neutrino Core Engine Light Ion Engine Power Core Neutrino Core Reactor Light Antimatter Reactor Propulsion Armored Wheel Treads Spiked Treads Leg Armored Leg Wheel Armored Wheel Utility Large Storage Unit Device Improved Heat Sink Storage Large Storage Unit Processor Improved Signal Interpreter Protection Improved Medium Armor Plating Weapon Improved Light Cannon Energy Gun Wave Gun Energy Cannon Heavy Plasma Cannon Ballistic Gun Assault Rifle Ballistic Cannon Improved Light Cannon Impact Weapon Hammer Build | -11 -10 -10 -7 -5 ------- Run | Yrd Mat Sub Rec Fac Slots Evolved 10 | . . . . 10 Power 1 | . . . . 1 Propulsion 2 | . . . . 2 Utility 6 | . . . . 6 Weapon 1 | . . . . 1 Parts Attached 98 | 6 11 2 6 73 Power 15 | 1 1 1 3 9 Engine 6 | 1 . 1 3 1 Core 7 | . 1 . . 6 Reactor 2 | . . . . 2 Propulsion 24 | 2 3 . . 19 Treads 1 | . . . . 1 Leg 14 | . . . . 14 Wheel 9 | 2 3 . . 4 Hover . | . . . . . Flight . | . . . . . Utility 22 | 1 3 . 1 17 Device 13 | . 1 . . 12 Storage 2 | 1 1 . . . Processor 5 | . 1 . 1 3 Hackware . | . . . . . Protection 2 | . . . . 2 Artifact . | . . . . . Weapon 37 | 2 4 1 2 28 Energy Gun 9 | 1 . . . 8 Energy Cannon 3 | . . . . 3 Ballistic Gun 9 | 1 1 . . 7 Ballistic Cannon 9 | . 2 1 1 5 Launcher . | . . . . . Special Weapon . | . . . . . Impact Weapon 7 | . 1 . 1 5 Slashing Weapon . | . . . . . Piercing Weapon . | . . . . . Special Melee Weapon . | . . . . . Unidentified Prototypes 1 | . . . . 1 Parts Lost 39 | . 4 . 2 33 Power 5 | . 1 . 1 3 Propulsion 14 | . 2 . . 12 Utility 6 | . . . . 6 Weapon 14 | . 1 . 1 12 Highest Loss Streak 8 | . 2 . 2 8 To Critical Strikes 1 | . . . . 1 Average Slot Usage (%) 85 | . 88 99 95 79 Engine 3 | . 5 13 9 . Core 2 | . 2 . . 4 Leg 7 | . . . . 12 Wheel 14 | . 26 28 28 4 Device 11 | . . . . 19 Storage 8 | . 14 14 14 5 Processor 12 | . 11 14 14 12 Energy Gun 2 | . 3 . . 3 Energy Cannon 1 | . . . . 2 Ballistic Gun 5 | . 17 . . 3 Ballistic Cannon 8 | . 6 28 23 1 Impact Weapon 1 | . . . 4 1 Naked Turns . | . . . . . Heaviest Build 78 | 13 26 33 33 78 Greatest Support 76 | 20 28 24 24 76 Greatest Overweight (x) 8 | . 1 1 1 8 Average Overweight (x) . | . . 1 1 . Largest Inventory Capacity 15 | 8 15 15 15 15 Average Capacity 13 | 6 9 15 15 15 Most Carried 15 | 4 8 9 15 15 Average Carried 11 | 2 7 8 14 12 Final Capacity 15 | 8 15 15 15 15 Final Carried 15 | 4 8 9 15 15 Scrap Engine Consumption 14 | . . . . 14 Class Distribution -------------------- 54% | Mutant 20% | Scavenger-Mutant 14% | Scavenger-Gunner 7% | Scavenger-Skirmisher Dominant Class ---------------- Mutant | -10/Materials Mutant | -10/Subcaves Mutant | -7/Recycling Scavenger-Mutant | -5/Factory Resources | -11 -10 -10 -7 -5 ----------- Run | Yrd Mat Sub Rec Fac Matter Collected 2269 | 182 299 107 235 1446 Remotely . | . . . . . Salvage Created 2997 | . 365 9 324 2299 Parts 118 | . 28 1 7 82 Haulers Intercepted 1 | . . . . 1 Recyclers Shooed 3 | . . . . 3 Parts Field Recycled . | . . . . . Retrieved Matter . | . . . . . Parts Self-Destructed 7 | . . 7 . . Prevented . | . . . . . Kills | -11 -10 -10 -7 -5 ------- Run | Yrd Mat Sub Rec Fac Combat Hostiles Destroyed 42 | . 8 3 2 29 Melee 2 | . . . . 2 Guns 18 | . 7 . . 11 Cannons 17 | . 1 3 2 11 AOE 2 | . . . . 2 Classes Destroyed 14 | . 5 1 1 7 Worker 5 | . . . . 5 Builder 3 | . . . . 3 Tunneler 2 | . 1 . . 1 Hauler 1 | . . . . 1 Recycler 6 | . 1 . 3 2 Mechanic 1 | . . . . 1 Turret 2 | . . 2 . . Watcher 6 | . 2 . . 4 Swarmer 8 | . 3 3 . 2 Grunt 15 | . 5 . . 10 Sentry 7 | . . . 2 5 Hunter 3 | . . . . 3 Programmer 8 | . . . . 8 Behemoth 1 | . . . . 1 Best Kill Streak 6 | . 6 3 3 6 Combat Bots Only 5 | . 5 3 2 4 Max Kills in Single Turn 1 | . 1 1 1 1 Gunslinging . | . . . . . Exploded 1 | . . . . 1 Melee 1 | . . . . 1 Uniques/NPCs Destroyed . | . . . . . Combat | -11 -10 -10 -7 -5 -------- Run | Yrd Mat Sub Rec Fac Hostile Shots Fired 531 | . 49 68 90 324 Missed 168 | . 11 31 37 89 Damage Taken 6435 | . 443 242 395 5355 Core 1244 | . 96 64 72 1012 Absorbed by Shields 120 | . . . . 120 Core Remaining (%) 53 | 100 . . 7 . Volleys Fired 194 | . 42 11 9 132 Largest 3 | . 2 2 2 3 Hottest 228 | . 60 78 78 228 Shots Fired 419 | . 85 23 11 300 Gun 299 | . 79 . . 220 Cannon 120 | . 6 23 11 80 Launcher . | . . . . . Special . | . . . . . Kinetic 267 | . 69 23 11 164 Thermal 152 | . 16 . . 136 Explosive . | . . . . . Electromagnetic . | . . . . . Robot Hit Streak 20 | . 7 2 6 20 Robot Miss Streak 5 | . 4 3 1 5 Penetration Max 1 | . . . . 1 Secondary Targets 5 | . 2 . . 3 Max Gunslinging Chain 1 | . 1 . . 1 Shots Hit Robots 308 | . 57 11 13 227 Core Hits 114 | . 21 7 6 80 Critical Kills 6 | . . . 1 5 Critical Parts Destroyed 15 | . . . . 15 Critical Strikes 32 | . . . 3 29 Burn 4 | . . . . 4 Destroy 14 | . . . . 14 Blast 7 | . . . 2 5 Smash 7 | . . . 1 6 Melee Attacks 46 | . 2 . 3 41 Impact 46 | . 2 . 3 41 Slashing . | . . . . . Piercing . | . . . . . Sneak Attacks 12 | . . . 3 9 Combat Hostiles 1 | . . . . 1 Follow-up Attacks . | . . . . . Damage Inflicted 7830 | . 721 256 398 6455 Guns 3512 | . 636 . . 2876 Cannons 2577 | . 85 256 213 2023 Explosions 456 | . . . . 456 Melee 1279 | . . . 185 1094 Ramming 6 | . . . . 6 Kinetic 3403 | . 594 256 213 2340 Thermal 2785 | . 127 . . 2658 Explosive 237 | . . . . 237 Electromagnetic 120 | . . . . 120 Impact 1279 | . . . 185 1094 Slashing . | . . . . . Piercing . | . . . . . Highest Corruption 6 | . 2 2 2 6 Average Corruption 3 | . 1 2 2 5 Corruption Purged . | . . . . . Corruption Blocked 8 | . . . . 8 Effects 42 | . 11 3 9 19 Message Errors 13 | . 5 1 . 7 Matter Fused 11 | . 2 . 4 5 Heat Flow Errors 4 | . 1 . 1 2 Energy Discharges 4 | . . 1 1 2 Parts Rejected 2 | . . . 1 1 Parts Fused 1 | . . . 1 . Data Loss (minor) 4 | . 2 . 1 1 Misfires 2 | . 1 1 . . Weapon Failures 1 | . . . . 1 Overload Shots . | . . . . . Overflow Damage 823 | . 12 5 24 782 Projectiles 77 | . 12 5 . 60 Explosions 106 | . . . . 106 Melee 640 | . . . 24 616 Knockbacks 29 | . 1 4 1 23 Impact 6 | . . . 1 5 Kinetic 20 | . 1 4 . 15 Secondary 3 | . . . . 3 Self-Inflicted Damage 395 | . . . . 395 Shots 5 | . . . . 5 Rammed . | . . . . . Targets Rammed 2 | . . . . 2 Kicked 2 | . . . . 2 Crushed . | . . . . . Highest Temperature 377 | . 86 22 194 377 Average Temperature 81 | . 39 11 60 97 Received Heat Transfer 1272 | . 204 120 108 840 Effects 5 | . . . . 5 Shutdowns 1 | . . . . 1 Energy Bleed 2 | . . . . 2 Interference 2 | . . . . 2 Siege Activations . | . . . . . Robots Corrupted . | . . . . . Combat Hostiles . | . . . . . Parts Fried 15 | . . . 1 14 Impact Corruptions 25 | . . . 1 24 Robots Melted . | . . . . . Combat Hostiles . | . . . . . Parts Melted 10 | . . . . 10 Heat Transferred 4610 | . 300 . . 4310 Parts Sabotaged . | . . . . . Parts Stolen . | . . . . . Parts Stripped . | . . . . . Power Chain Reactions . | . . . . . Alert | -11 -10 -10 -7 -5 ------- Run | Yrd Mat Sub Rec Fac Peak Influence 706 | . 258 . 345 706 Initial 322 | . . . 322 75 Average 248 | . 93 . 264 300 Maximum Alert Level 3 | . 1 . 1 3 Low Security (%) 48 | 100 82 . 42 37 Level 1 30 | . 17 . 57 26 Level 2 21 | . . . . 35 Level 3 . | . . . . . Level 4 . | . . . . . Level 5 . | . . . . . High Security . | . . . . . Max Security . | . . . . . Squads Dispatched 10 | . 2 . . 8 Investigation . | . . . . . Extermination 3 | . . . . 3 Reinforcement 6 | . 2 . . 4 Assault 1 | . . . . 1 Garrison . | . . . . . Intercept . | . . . . . Searches Triggered . | . . . . . Construction Impeded 2 | . . . . 2 Haulers Reinforced 1 | . . . . 1 Active Scanning Responses . | . . . . . Cargo Convoy Interrupts . | . . . . . Stealth | -11 -10 -10 -7 -5 --------- Run | Yrd Mat Sub Rec Fac Distress Signals 1 | . . . . 1 Communications Jammed . | . . . . . Distress Signals . | . . . . . Times Spotted 90 | . 16 17 2 55 Peak Tracking Total 8 | . 4 5 2 8 Tactical Retreats 14 | . 1 4 . 9 Traps | -11 -10 -10 -7 -5 ------- Run | Yrd Mat Sub Rec Fac Traps Triggered 4 | . 2 . . 2 Indirectly . | . . . . . Trap Hack Attempts . | . . . . . Triggered . | . . . . . Disarmed . | . . . . . Reprogrammed . | . . . . . Reused . | . . . . . Traps Extracted . | . . . . . Installed . | . . . . . Triggered . | . . . . . Machines | -11 -10 -10 -7 -5 ---------- Run | Yrd Mat Sub Rec Fac Machines Disabled 14 | . . . . 14 Max in Single Turn 5 | . . . . 5 Garrison Access 1 | . . . . 1 Machines Repaired . | . . . . . Machines Dismantled . | . . . . . Machines Sabotaged . | . . . . . Overloaded Fab Kills . | . . . . . Hacking | -11 -10 -10 -7 -5 --------- Run | Yrd Mat Sub Rec Fac Machines Accessed 23 | . 7 . 9 7 Terminals 12 | . 6 . 3 3 Fabricators 1 | . . . . 1 Repair Stations . | . . . . . Recycling Units 9 | . 1 . 6 2 Scanalyzers . | . . . . . Garrison Access 1 | . . . . 1 Total Hacks 52 | . 18 . 16 18 Successful 20 | . 5 . 10 5 Failed 32 | . 13 . 6 13 Catastrophic 5 | . 3 . 1 1 Database Lockouts . | . . . . . Manual 21 | . 9 . 5 7 Terminals 32 | . 14 . 9 9 Fabricators 1 | . . . . 1 Repair Stations . | . . . . . Recycling Units 18 | . 4 . 7 7 Scanalyzers . | . . . . . Garrison Access 1 | . . . . 1 Terminal Hacks 3 | . 2 . 1 . Unreport Threat 1 | . 1 . . . Hauler Manifests 2 | . 1 . 1 . Fabricator Hacks 1 | . . . . 1 Build 1 | . . . . 1 Repair Station Hacks . | . . . . . Recycling Unit Hacks 6 | . . . 5 1 Retrieve Components 6 | . . . 5 1 Scanalyzer . | . . . . . Garrison Access Hacks 1 | . . . . 1 Seal Access 1 | . . . . 1 Unauthorized Hacks 9 | . 3 . 4 2 Terminals 8 | . 2 . 4 2 Assimilate 1 | . 1 . . . Botnet 4 | . . . 3 1 Operators 3 | . 1 . 1 1 Fabricators . | . . . . . Repair Stations . | . . . . . Recycling Units 1 | . 1 . . . Reject 1 | . 1 . . . Scanalyzers . | . . . . . Garrison Access . | . . . . . Data Cores Recovered . | . . . . . Used . | . . . . . Hacking Detections 16 | . 7 . 5 4 Full Trace Events . | . . . . . Feedback Events . | . . . . . Feedback Blocked . | . . . . . Robot Schematics Acquired . | . . . . . Robots Built 1 | . . . . 1 Authchips . | . . . . . Time 40 | . . . . 40 Total Robot Build Rating 1 | . . . . 1 Part Schematics Acquired . | . . . . . Parts Built . | . . . . . Authchips . | . . . . . Time . | . . . . . Total Part Build Rating . | . . . . . Parts Repaired . | . . . . . Time . | . . . . . Parts Recycled . | . . . . . Recycled Matter . | . . . . . Retrieved Matter . | . . . . . Retrieved Components 7 | . . . 7 . Parts Scanalyzed . | . . . . . Part Schematics Acquired . | . . . . . Parts Damaged . | . . . . . Bothacking | -11 -10 -10 -7 -5 ------------ Run | Yrd Mat Sub Rec Fac Used RIF Installer . | . . . . . Robots Hacked . | . . . . . Non-combat . | . . . . . Combat . | . . . . . Robot Hacks Applied . | . . . . . Relay Couplers Released . | . . . . . Fabnet Peak Effective % . | . . . . . Robots Rewired . | . . . . . Allies Hacked 1 | . . . . 1 Hacks Repelled . | . . . . . Allies | -11 -10 -10 -7 -5 -------- Run | Yrd Mat Sub Rec Fac Total Allies 4 | . . . . 4 Largest Group 3 | . . . . 3 Highest-Rated Group 93 | . . . . 93 Highest-Rated Ally 31 | . . . . 31 Total Orders . | . . . . . Ally Attacks 26 | . . . . 26 Total Damage 472 | . . . . 472 Kills 2 | . . . . 2 Allies Corrupted . | . . . . . Allies Melted . | . . . . . Intel | -11 -10 -10 -7 -5 ------- Run | Yrd Mat Sub Rec Fac Robot Analysis Total . | . . . . . Derelict Logs Recovered . | . . . . . Drone Launches . | . . . . . Drone Recoveries . | . . . . . Exploration | -11 -10 -10 -7 -5 ------------- Run | Yrd Mat Sub Rec Fac Turns Passed 4183 | 49 781 276 694 2383 Spaces Moved 2615 | 46 539 226 611 1193 Core 5 | 2 . . . 3 Treads 2 | . . . . 2 Legs 717 | . . . . 717 Wheels 1891 | 44 539 226 611 471 Hover . | . . . . . Flight . | . . . . . Fastest Speed 50 | 50 80 105 105 90 Average Speed 113 | 78 92 105 105 130 Slowest Speed 450 | 80 105 105 105 450 Overloaded Moves . | . . . . . Propulsion Burnouts . | . . . . . Robots Hopped . | . . . . . Cave-ins Triggered . | . . . . . Exploration Rate (%) 47 | 4 91 17 96 27 Regions Visited 4 Branch Regions 2 Pre-discovered Areas . | . . . . . Known Exits Taken 3 | . 1 1 1 . Unknown Exits Taken 1 | 1 . . . . Scrap Searched 1 | . . 1 . . Spaces Dug 7 | . . . . 7 Terrain Destroyed 94 | . 1 . . 93 Melee 7 | . . . . 7 Projectile 22 | . 1 . . 21 AOE 64 | . . . . 64 Terrain Rammed . | . . . . . Walls Destroyed . | . . . . . Machines Disabled . | . . . . . Actions | -11 -10 -10 -7 -5 --------- Run | Yrd Mat Sub Rec Fac Total 3369 | 55 739 241 647 1687 Wait 346 | . 129 2 8 207 Move 2611 | 45 538 225 610 1193 Hop . | . . . . . Pick Up 38 | 4 8 1 7 18 Fast Attach 48 | 6 4 1 2 35 Attach 23 | . 2 . 2 19 Detach 6 | . 1 . 1 4 Swap 27 | . 5 1 2 19 Drop 24 | . 8 . 3 13 Fire 194 | . 42 11 9 132 Melee 46 | . 2 . 3 41 Ram . | . . . . . Kick 2 | . . . . 2 Crush . | . . . . . Escape Stasis . | . . . . . Rewire 4 | . . . . 4 Trap . | . . . . . Miscellaneous . | . . . . . Route ------- -11/Scrapyard -10/Materials (discovered 4 exits: *Mat x3 / *Sub) -10/Subcaves (discovered 3 exits: *Mat x2 / *Rec) -7/Recycling -5/Factory History --------- Turn | Location | Event 19 | -11/Scrapyard | Discovered new exit (range 14) 50 | -11/Scrapyard | Entered Materials 281 | -10/Materials | Discovered new exit (range 15) 294 | -10/Materials | Identified exit to Materials 302 | -10/Materials | Build established: Mutant 513 | -10/Materials | Discovered exit to Materials (range 12) 652 | -10/Materials | Discovered exit to Materials (range 16) 828 | -10/Materials | Discovered new exit (range 3) 830 | -10/Materials | Identified exit to Subcaves 831 | -10/Materials | Entered Subcaves 859 | -10/Subcaves | Discovered new exit (range 15) 887 | -10/Subcaves | Core integrity fell below 50% 902 | -10/Subcaves | Identified exit to Materials 969 | -10/Subcaves | Discovered new exit (range 12) 996 | -10/Subcaves | Discovered exit to Materials (range 4) 1004 | -10/Subcaves | Identified exit to Recycling 1107 | -10/Subcaves | Entered Recycling 1110 | -7/Recycling | Found Scrap Engine 1497 | -7/Recycling | Discovered new exit (range 7) 1502 | -7/Recycling | Identified exit to Factory 1572 | -7/Recycling | Core integrity fell below 20% 1801 | -7/Recycling | Entered Factory 1801 | -5/Factory | Evolved 10 slots: Power x1, Propulsion x2, Utility x6, Weapon x1 2079 | -5/Factory | Lost 7 parts (4n3w) 2417 | -5/Factory | Allied Derelicts emerged from ambush trap array 2487 | -5/Factory | Lost 3 allies 2563 | -5/Factory | Lost 8 parts (1p3n1u3w) 2616 | -5/Factory | Core integrity fell below 50% 2864 | -5/Factory | Lost 5 parts (2n2u1w) 2946 | -5/Factory | Core integrity fell below 20% 3413 | -5/Factory | Spotted B-75 Beast 3474 | -5/Factory | Destroyed B-75 Beast 3498 | -5/Factory | Lost 5 parts (2p1n2w) 3570 | -5/Factory | Lost 4 parts (2u2w) 3901 | -5/Factory | First assault squad dispatched 3911 | -5/Factory | Fabricated A-02 Transporter (x1) 4184 | -5/Factory | Destroyed by G-50 Soldier with Heavy Laser Last Messages --------------- 04152_ P-70 Sage destroyed. 04152_ K-01 Serf collects debris. 04153_ 84JOUFEJ&:LYTCV HF JFC 04155_ Slug penetrates P-70 Sage. 04155_ Destroyed Hpw. Shock Rifle. 04155_ P-70 Sage knocked back. 04158_ Antigrav System melted. 04158_ Tesla Rifle melted. 04158_ P-70 Sage destroyed. 04158_ K-01 Serf collects debris. 04161_ Acquired 31 matter. 04162_ U-05 Engineer builds a Wall. 04165_ Dropped Lgt. Angular Momentum Engine. 04165_ Acquired Mic. Fission Core. 04178_ System corrupted: Matter fused (-9). 04178_ Acquired 9 matter. 04179_ G-50 Soldier knocked back. 04180_ Acquired 7 matter. 04182_ G-50 Soldier destroyed. 04183_ Acquired 6 matter. Map ----- +----------------------------------------------------+ | ####?# + # #??????????????????????????????????? | | #?# # # #??????????????????????????????????? | | #?# # # #??????????????????????????????????? | | #?# + # #??????????????????????????????????? | | " #?# ######+#####??????????????????????????????? | | " ### ## !#??????????????????????????????? | | " ## #??????????????????????????????? | | " %## # ?????????????????????????? | | " ## " +????????????????????????? | | " / #? ???????????????????????????? | | # #? ?????????????????????????? | | # #? #?????????????????????????? | | # ! #? ??????????????????????????? | | ###########? ??????????????????????????? | | #??????????? ??????????????????????????? | | ##### ############ ??????????????????????##### | | #???# #??????????????????????# | | ?#### #???????????????+####### | | ?# """" """" ???????????????? # | | ?# """" """" #??#############?? # | | ## """" """" #??# ???? # | | !####* ########## | | ## """" """" !![ # % # | | ?# """" """" =[%%* + """" # | | ?# """" """" ####g[###### """" + | | ?# #### % % #?##@##????# """" # | | ?# #??# """ """% #?##]##????# """" # | | ##+#### """ """" ####+#####?# """" # | | !# """ """" ## % #?# """" + | | %% # ## """ #?# """" ##+###### | | """ + ## """" #?# # ???? | | |=""" #### ## """" #?########## !?? | | """ #?###+########### """" #??????????# #? | | #?# #???# """" #??????????# #? | | #######?# #???# """" #??????????# #? | | ????????# #???# """" #??????????# #? | | ????????# #???# #??????????########? | | ####################### #??????????????????? | | # ## # #??????????????????? | | = # """" ## # #??????????????????? | | +% "=## # #??????????????????? | | *# %!* *## # """ #??????????????????? | | ########+#### """ """ # Y" #??????????????????? | | [ % + """ """ # """ #??????????????????? | | !########### """ """ # % #??????????????????? | | ###???##### % % ####+####??????????????????? | | #######T ########+### #??????????????????? | | ######?????????????? | | % ??????????? | | ???????? | +----------------------------------------------------+ Best States ------------- Heat Dissipation 92 Energy Generation 35 Energy Capacity 385 Matter Stores 300 Matter Capacity 300 Sight Range 16 Terrain Scan Density 85 Corruption Block 15 Armor Coverage 225 Evasion (%) 55 Target Analysis 6 Recoil Reduction 1 Authchip Count 4 Item Schematics ----------------- None Robot Schematics ------------------ None Fabricated ------------ A-02 Transporter | x1 | -5/Factory | Preloaded Alien Tech Used ----------------- None Achievements -------------- None Challenges ------------ None Game ------ Seed LegAngularSplitter Manual? 0 Play Time 00:48:10 Cumulative 43.9 hours Start 2024.04.23 @ 20:44:56 End 2024.04.23 @ 21:30:52 Sessions 1 Manual Loads 0 Difficulty Rogue Special Mode None Game No. 64 Rogue 64 Adventurer 0 Explorer 0 Win Type - Total 0 Types 0/0/0/0/0/0/0/0/0 Lore% 38 Gallery% 48 Achievement% 31 Wizard Run 0 Options --------- Layout 1 ASCII 0 Keyboard 1 Movement Arrows Keybinds 0 Fullscreen 2 Font 24/Smallcaps Map View 50x35 Zoom Use 0% Tactical HUD 1 Map Filters NONE Filters NONE Steam 1 RUN: 87fc0866-4089-4de4-a5ad-b87ed8b1deb9